lending/lending_fUSD_20250121
["ID","MTS","AMOUNT","RATE_DAILY","PERIOD"]
[349771840,1737419459657,-500.0,0.00019726,2]
[349771841,1737419459667,-453.70026637,0.00019726,2]
[349771842,1737419459677,-500.0,0.0002,2]
[349771843,1737419459686,-500.0,0.0002,2]
[349771844,1737419459696,-500.0,0.00020273,2]
[349771845,1737419459706,-500.0,0.00020273,2]
[349771846,1737419459716,-579.61,0.00020519,2]
[349771847,1737419459725,-500.0,0.00020547,2]
[349771848,1737419459734,-500.0,0.00020547,2]
[349771849,1737419459744,-500.0,0.00020619,2]
[349771850,1737419459753,-579.61,0.00020793,2]
[349771851,1737419459762,-500.0,0.00020893,2]
[349771852,1737419459772,-579.61,0.00021067,2]
[349771853,1737419459781,-500.0,0.00021167,2]
[349771854,1737419459790,-48180.97829342,0.00022,2]
[349771855,1737419459802,-282.07,0.00022,2]
[349771856,1737419459814,-463.59,0.00022,2]
[349771857,1737419459824,-1868.53283797,0.00022,2]
[349771858,1737419459845,-19846.9582454,0.00022,2]
[349771859,1737419459857,-19852.51822778,0.00022,2]
[349771860,1737419459876,-500.0,0.00021441,2]
[349771861,1737419459885,-1438.45550524,0.00022,2]
[349771862,1737419459896,-11958.41631784,0.00022,2]
[349771863,1737419459908,-80786.65916586,0.00022,2]
[349771864,1737419459923,-74552.24274399,0.00022,2]
[349771865,1737419460159,-624.66055344,0.00019178,2]
[349771866,1737419460169,-156.346408,0.00019178,2]
[349771867,1737419460179,-500.0,0.00019178,2]
[349771868,1737419460188,-156.346408,0.00019452,2]
[349771869,1737419460198,-171.2427429,0.00019452,2]
[349771870,1737419460208,-156.346408,0.0002,2]
[349771871,1737419460218,-156.346408,0.00020273,2]
[349771872,1737419460227,-500.0,0.00020518,2]
[349771873,1737419460237,-500.0,0.00020519,2]
[349771874,1737419460246,-500.0,0.00020792,2]
[349771875,1737419460256,-500.0,0.00020793,2]
[349771876,1737419460265,-500.0,0.00021066,2]
[349771877,1737419460275,-500.0,0.00021067,2]
[349771878,1737419460284,-579.61,0.00021341,2]
[349771879,1737419460294,-500.0,0.00021341,2]
[349771880,1737419460303,-567.0,0.00021533,2]
[349771881,1737419460313,-470.00984477,0.00021615,2]
[349771882,1737419460325,-109.60015523,0.00021615,2]
[349771883,1737419460334,-500.0,0.00021615,2]
[349771884,1737419460344,-203.09948479,0.00021715,2]
[349771885,1737419460376,-500.0,0.00019178,2]
[349771886,1737419460390,-296.90051521,0.00021715,2]
[349771887,1737419460401,-579.61,0.00021889,2]
[349771888,1737419460411,-500.0,0.00021889,2]
[349771889,1737419460421,-500.0,0.00021989,2]
[349771890,1737419460431,-33245.88721519,0.00022,2]
[349771891,1737419460450,-8264.38964479,0.00022,2]
[349771892,1737419460479,-500.0,0.0002134,2]
[349771893,1737419460489,-3497.53628963,0.00022,2]
[349771894,1737419460501,-3501.74527416,0.00022,2]
[349771895,1737419460527,-4650.02835276,0.00022,2]
[349771898,1737420280608,11431.82500514,0.00024,120]
[349771899,1737420388164,151.29,0.00010137,2]
[349771901,1737420403122,-910.88,0.00016553,2]
[349771902,1737420403145,-3520.53364229,0.00017084,2]
[349771904,1737420586160,238.02438946,0.00024,90]
[349771911,1737420637198,-151.29,0.00017184,2]
[349771912,1737420637208,-1268.79416318,0.00018224,2]
[349771913,1737420637223,-1268.79416316,0.00018229,2]
[349771914,1737420637232,-250.0,0.00018324,2]
[349771915,1737420637242,-1000.0,0.00018333,2]
[349771916,1737420637252,-166.64,0.00018363,2]
[349771917,1737420637263,-2631.62198629,0.00018391,2]
[349771918,1737420637273,-250.0,0.00018391,2]
[349771919,1737420637283,-500.0,0.0001863,2]
[349771920,1737420637294,-250.0,0.00018678,2]
[349771921,1737420637304,-171.77,0.00018726,2]
[349771922,1737420637314,-174.85,0.00018814,2]
[349771923,1737420637323,-910.88,0.00018817,2]
[349771924,1737420637333,-751.14,0.00018952,2]
[349771925,1737420637343,-405.0,0.00019077,2]
[349771926,1737420637352,-300.0,0.00019077,2]
[349771927,1737420637362,-2282.5399,0.00019078,2]
[349771928,1737420637372,-20000.3281,0.00019078,2]
[349771929,1737420637382,-287.975081,0.00019124,2]
[349771930,1737420637391,-551.474,0.00019177,2]
[349771931,1737420637400,-523.31264585,0.00019178,2]
[349771932,1737420637414,-500.0,0.00019178,2]
[349771933,1737420637423,-500.0,0.00019178,2]
[349771934,1737420637433,-500.0,0.00019178,2]
[349771935,1737420637442,-500.0,0.00019178,2]
[349771936,1737420637452,-500.0,0.00019178,2]
[349771937,1737420637462,-500.0,0.00019178,2]
[349771938,1737420637471,-500.0,0.00019178,2]
[349771939,1737420637480,-500.0,0.00019178,2]
[349771940,1737420637490,-500.0,0.00019178,2]
[349771941,1737420637499,-500.0,0.00019178,2]
[349771942,1737420637509,-500.0,0.00019178,2]
[349771943,1737420637519,-500.0,0.00019178,2]
[349771945,1737420637528,-500.0,0.00019178,2]
[349771947,1737420637537,-500.0,0.00019178,2]
[349771949,1737420637547,-68.33494964,0.00019178,2]
[349771951,1737420637559,-431.66505036,0.00019178,2]
[349771952,1737420637569,-236.00713417,0.00019178,2]
[349771953,1737420637585,-410.48612007,0.00019178,2]
[349771954,1737420637595,-5.22713652,0.00019178,2]
[349771955,1737420637607,-494.77286348,0.00019178,2]
[349771956,1737420637616,-500.0,0.00019178,2]
[349771957,1737420637626,-506.99809768,0.00019178,2]
[349771958,1737420637636,-500.0,0.00019178,2]
[349771959,1737420637646,-500.0,0.00019178,2]
[349771960,1737420637657,-266.88908536,0.00019178,2]
[349771961,1737420637666,-500.0,0.00019178,2]
[349771962,1737420637675,-500.0,0.00019178,2]
[349771963,1737420637685,-500.0,0.00019178,2]
[349771964,1737420637694,-500.0,0.00019178,2]
[349771965,1737420637704,-130.6350707,0.00019178,2]
[349771966,1737420637715,-369.3649293,0.00019178,2]
[349771967,1737420637725,-500.0,0.00019178,2]
[349771968,1737420637735,-500.0,0.00019178,2]
[349771969,1737420637745,-500.0,0.00019178,2]
[349771970,1737420637755,-500.0,0.00019178,2]
[349771971,1737420637764,-500.0,0.00019178,2]
[349771972,1737420637778,-500.0,0.00019178,2]
[349771973,1737420637795,-500.0,0.00019178,2]
[349771974,1737420637809,-500.0,0.00019178,2]
[349771975,1737420637821,-500.0,0.00019178,2]
[349771976,1737420637836,-217.61838818,0.00019178,2]
[349771977,1737420637850,-500.0,0.00019178,2]
[349771978,1737420637865,-500.0,0.00019178,2]
[349771979,1737420637880,-500.0,0.00019178,2]
[349771980,1737420637894,-500.0,0.00019178,2]
[349771981,1737420637909,-500.0,0.00019178,2]
[349771982,1737420637924,-500.0,0.00019178,2]
[349771983,1737420637939,-500.0,0.00019178,2]
[349771984,1737420637954,-500.0,0.00019178,2]
[349771985,1737420637968,-500.0,0.00019178,2]
[349771986,1737420637984,-500.0,0.00019178,2]
[349771987,1737420637999,-500.0,0.00019178,2]
[349771988,1737420638013,-500.0,0.00019178,2]
[349771989,1737420638028,-500.0,0.00019178,2]
[349771990,1737420638042,-500.0,0.00019178,2]
[349771991,1737420638056,-500.0,0.00019178,2]
[349771992,1737420638071,-500.0,0.00019178,2]
[349771993,1737420638084,-500.0,0.00019178,2]
[349771994,1737420638096,-500.0,0.00019178,2]
[349771995,1737420638108,-500.0,0.00019178,2]
[349771996,1737420638125,-500.0,0.00019178,2]
[349771997,1737420638136,-500.0,0.00019178,2]
[349771998,1737420638147,-500.0,0.00019178,2]
[349772000,1737420638162,-500.0,0.00019178,2]
[349772001,1737420638177,-500.0,0.00019178,2]
[349772002,1737420638188,-500.0,0.00019178,2]
[349772003,1737420638200,-500.0,0.00019178,2]
[349772007,1737420638216,-500.0,0.00019178,2]
[349772008,1737420638231,-500.0,0.00019178,2]
[349772010,1737420638243,-500.0,0.00019178,2]
[349772011,1737420638257,-500.0,0.00019178,2]
[349772012,1737420638270,-500.0,0.00019178,2]
[349772013,1737420638283,-500.0,0.00019178,2]
[349772014,1737420638296,-500.0,0.00019178,2]
[349772015,1737420638308,-500.0,0.00019178,2]
[349772016,1737420638320,-500.0,0.00019178,2]
[349772017,1737420638332,-500.0,0.00019178,2]
[349772018,1737420638345,-500.0,0.00019178,2]
[349772019,1737420638358,-500.0,0.00019178,2]
[349772020,1737420638369,-500.0,0.00019178,2]
[349772021,1737420638382,-500.0,0.00019178,2]
[349772022,1737420638394,-500.0,0.00019178,2]
[349772023,1737420638408,-500.0,0.00019178,2]
[349772024,1737420638420,-500.0,0.00019178,2]
[349772025,1737420638432,-500.0,0.00019178,2]
[349772026,1737420638445,-500.0,0.00019178,2]
[349772027,1737420638458,-500.0,0.00019178,2]
[349772028,1737420638471,-518.63323433,0.00019178,2]
[349772029,1737420638484,-500.0,0.00019178,2]
[349772030,1737420638497,-500.0,0.00019178,2]
[349772031,1737420638512,-500.0,0.00019178,2]
[349772032,1737420638526,-500.0,0.00019178,2]
[349772033,1737420638540,-500.0,0.00019178,2]
[349772034,1737420638552,-500.0,0.00019178,2]
[349772035,1737420638564,-500.0,0.00019178,2]
[349772036,1737420638577,-500.0,0.00019178,2]
[349772037,1737420638589,-500.0,0.00019178,2]
[349772038,1737420638603,-500.0,0.00019178,2]
[349772039,1737420638615,-500.0,0.00019178,2]
[349772040,1737420638628,-500.0,0.00019178,2]
[349772042,1737420638641,-500.0,0.00019178,2]
[349772043,1737420638654,-500.0,0.00019178,2]
[349772044,1737420638667,-500.0,0.00019178,2]
[349772045,1737420638681,-597.13,0.00019178,2]
[349772047,1737420638694,-504.93362862,0.00019178,2]
[349772049,1737420638707,-500.0,0.00019178,2]
[349772051,1737420638719,-500.0,0.00019178,2]
[349772053,1737420638732,-583.33,0.00019178,2]
[349772056,1737420638744,-500.0,0.00019178,2]
[349772058,1737420638756,-604.16,0.00019178,2]
[349772060,1737420638768,-500.0,0.00019178,2]
[349772062,1737420638781,-500.0,0.00019178,2]
[349772064,1737420638795,-500.0,0.00019178,2]
[349772067,1737420638807,-664.29,0.00019178,2]
[349772068,1737420638821,-500.0,0.00019178,2]
[349772069,1737420638833,-500.0,0.00019178,2]
[349772070,1737420638847,-500.0,0.00019178,2]
[349772071,1737420638859,-500.0,0.00019178,2]
[349772072,1737420638871,-617.19717958,0.00019178,2]
[349772073,1737420638884,-500.0,0.00019178,2]
[349772074,1737420638897,-500.0,0.00019178,2]
[349772075,1737420638912,-500.0,0.00019178,2]
[349772076,1737420638925,-500.0,0.00019178,2]
[349772077,1737420638938,-500.0,0.00019178,2]
[349772078,1737420638950,-500.0,0.00019178,2]
[349772079,1737420638963,-500.0,0.00019178,2]
[349772080,1737420638975,-500.0,0.00019178,2]
[349772081,1737420638988,-500.0,0.00019178,2]
[349772082,1737420639001,-280.71562892,0.00019178,2]
[349772083,1737420639013,-500.0,0.00019178,2]
[349772084,1737420639026,-500.0,0.00019178,2]
[349772085,1737420639039,-500.0,0.00019178,2]
[349772086,1737420639051,-500.0,0.00019178,2]
[349772087,1737420639063,-500.0,0.00019178,2]
[349772088,1737420639076,-461.54010866,0.00019178,2]
[349772089,1737420639089,-500.0,0.00019178,2]
[349772090,1737420639102,-500.0,0.00019178,2]
[349772091,1737420639113,-500.0,0.00019178,2]
[349772092,1737420639123,-500.0,0.00019178,2]
[349772093,1737420639132,-560.89,0.00019178,2]
[349772094,1737420639142,-500.0,0.00019178,2]
[349772095,1737420639152,-500.0,0.00019178,2]
[349772096,1737420639165,-323.29066929,0.00019178,2]
[349772097,1737420639175,-500.0,0.00019178,2]
[349772098,1737420639184,-500.0,0.00019178,2]
[349772099,1737420639448,-500.0,0.00019178,2]
[349772100,1737420639461,-500.0,0.00019178,2]
[349772101,1737420639470,-500.0,0.00019178,2]
[349772102,1737420639480,-500.0,0.00019178,2]
[349772103,1737420639489,-500.0,0.00019178,2]
[349772104,1737420639499,-500.0,0.00019178,2]
[349772105,1737420639509,-500.0,0.00019178,2]
[349772106,1737420639518,-500.0,0.00019178,2]
[349772107,1737420639528,-500.0,0.00019178,2]
[349772108,1737420639536,-500.0,0.00019178,2]
[349772109,1737420639546,-500.0,0.00019178,2]
[349772110,1737420639556,-500.0,0.00019178,2]
[349772111,1737420639565,-500.0,0.00019178,2]
[349772112,1737420639575,-500.0,0.00019178,2]
[349772113,1737420639584,-500.0,0.00019178,2]
[349772114,1737420639594,-500.0,0.00019178,2]
[349772115,1737420639604,-500.0,0.00019178,2]
[349772116,1737420639613,-500.0,0.00019178,2]
[349772117,1737420639623,-500.0,0.00019178,2]
[349772118,1737420639632,-500.0,0.00019178,2]
[349772119,1737420639641,-500.0,0.00019178,2]
[349772120,1737420639650,-588.71,0.00019178,2]
[349772121,1737420639662,-534.91609849,0.00019178,2]
[349772122,1737420639671,-500.0,0.00019178,2]
[349772123,1737420639681,-500.0,0.00019178,2]
[349772124,1737420639690,-500.0,0.00019178,2]
[349772125,1737420639699,-500.0,0.00019178,2]
[349772126,1737420639709,-500.0,0.00019178,2]
[349772127,1737420639718,-500.0,0.00019178,2]
[349772128,1737420639727,-197.24584862,0.00019178,2]
[349772129,1737420639737,-500.0,0.00019178,2]
[349772130,1737420639747,-621.71197062,0.00019178,2]
[349772131,1737420639757,-500.0,0.00019178,2]
[349772132,1737420639766,-500.0,0.00019178,2]
[349772133,1737420639775,-500.0,0.00019178,2]
[349772134,1737420639785,-500.0,0.00019178,2]
[349772135,1737420639795,-500.0,0.00019178,2]
[349772136,1737420639804,-500.0,0.00019178,2]
[349772137,1737420639813,-500.0,0.00019178,2]
[349772138,1737420639822,-500.0,0.00019178,2]
[349772139,1737420639832,-500.0,0.00019178,2]
[349772140,1737420639841,-500.0,0.00019178,2]
[349772141,1737420639851,-500.0,0.00019178,2]
[349772142,1737420639860,-500.0,0.00019178,2]
[349772143,1737420639869,-500.0,0.00019178,2]
[349772144,1737420639879,-500.0,0.00019178,2]
[349772145,1737420639888,-500.0,0.00019178,2]
[349772146,1737420639897,-500.0,0.00019178,2]
[349772147,1737420639913,-500.0,0.00019178,2]
[349772148,1737420639922,-1697.86,0.00019178,2]
[349772149,1737420639933,-507.30427451,0.00019178,2]
[349772150,1737420639943,-500.0,0.00019178,2]
[349772151,1737420639952,-500.0,0.00019178,2]
[349772152,1737420639962,-499.96015298,0.00019178,2]
[349772153,1737420639972,-500.0,0.00019178,2]
[349772154,1737420639982,-500.0,0.00019178,2]
[349772155,1737420639992,-659.43,0.00019178,2]
[349772156,1737420640002,-500.0,0.00019178,2]
[349772157,1737420640012,-500.0,0.00019178,2]
[349772158,1737420640022,-500.0,0.00019178,2]
[349772159,1737420640032,-500.0,0.00019178,2]
[349772160,1737420640041,-500.0,0.00019178,2]
[349772161,1737420640051,-500.0,0.00019178,2]
[349772162,1737420640062,-716.849871,0.00019178,2]
[349772163,1737420640071,-500.0,0.00019178,2]
[349772164,1737420640081,-500.0,0.00019178,2]
[349772165,1737420640091,-500.0,0.00019178,2]
[349772166,1737420640101,-500.0,0.00019178,2]
[349772167,1737420640111,-500.0,0.00019178,2]
[349772168,1737420640120,-157.795335,0.00019178,2]
[349772169,1737420640130,-500.0,0.00019178,2]
[349772170,1737420640139,-500.0,0.00019178,2]
[349772171,1737420640149,-160.374804,0.00019178,2]
[349772172,1737420640161,-500.0,0.00019178,2]
[349772173,1737420640170,-500.0,0.00019178,2]
[349772174,1737420640178,-500.0,0.00019178,2]
[349772175,1737420640188,-500.0,0.00019178,2]
[349772176,1737420640198,-500.0,0.00019178,2]
[349772177,1737420640212,-500.0,0.00019178,2]
[349772178,1737420640226,-500.0,0.00019178,2]
[349772179,1737420640235,-506.96,0.00019178,2]
[349772180,1737420640245,-200.0,0.00019178,2]
[349772181,1737420640256,-1515.28,0.00019178,2]
[349772182,1737420640266,-500.0,0.00019178,2]
[349772183,1737420640276,-500.0,0.00019178,2]
[349772184,1737420640288,-500.0,0.00019178,2]
[349772185,1737420640298,-500.0,0.00019178,2]
[349772186,1737420640308,-487.986546,0.00019178,2]
[349772187,1737420640317,-500.0,0.00019178,2]
[349772188,1737420640326,-500.0,0.00019178,2]
[349772189,1737420640336,-500.0,0.00019178,2]
[349772190,1737420640346,-500.0,0.00019178,2]
[349772191,1737420640355,-500.0,0.00019178,2]
[349772192,1737420640365,-500.0,0.00019178,2]
[349772193,1737420640376,-500.0,0.00019178,2]
[349772194,1737420640385,-500.0,0.00019178,2]
[349772195,1737420640395,-500.0,0.00019178,2]
[349772196,1737420640408,-500.0,0.00019178,2]
[349772197,1737420640418,-500.0,0.00019178,2]
[349772198,1737420640428,-500.0,0.00019178,2]
[349772199,1737420640439,-500.0,0.00019178,2]
[349772200,1737420640451,-500.0,0.00019178,2]
[349772201,1737420640463,-1653.02,0.00019178,2]
[349772202,1737420640473,-845.58,0.00019178,2]
[349772203,1737420640483,-500.0,0.00019178,2]
[349772204,1737420640494,-500.0,0.00019178,2]
[349772205,1737420640506,-500.0,0.00019178,2]
[349772206,1737420640516,-500.0,0.00019178,2]
[349772207,1737420640526,-500.0,0.00019178,2]
[349772208,1737420640536,-1027.64,0.00019178,2]
[349772209,1737420640545,-500.0,0.00019178,2]
[349772210,1737420640555,-969.02,0.00019178,2]
[349772211,1737420640565,-500.0,0.00019178,2]
[349772212,1737420640575,-500.0,0.00019178,2]
[349772213,1737420640585,-500.0,0.00019178,2]
[349772214,1737420640595,-1967.24,0.00019178,2]
[349772215,1737420640606,-1111.37,0.00019178,2]
[349772216,1737420640615,-500.0,0.00019178,2]
[349772217,1737420640624,-500.0,0.00019178,2]
[349772218,1737420640634,-500.0,0.00019178,2]
[349772219,1737420640643,-898.19,0.00019178,2]
[349772220,1737420640653,-500.0,0.00019178,2]
[349772221,1737420640665,-500.0,0.00019178,2]
[349772222,1737420640675,-500.0,0.00019178,2]
[349772223,1737420640685,-1226.71,0.00019178,2]
[349772224,1737420640696,-652.51,0.00019178,2]
[349772225,1737420640706,-509.9398266,0.00019178,2]
[349772226,1737420640715,-619.63,0.00019178,2]
[349772227,1737420640725,-500.0,0.00019178,2]
[349772228,1737420640735,-500.0,0.00019178,2]
[349772229,1737420640745,-1210.94,0.00019178,2]
[349772230,1737420640755,-500.0,0.00019178,2]
[349772231,1737420640765,-801.67,0.00019178,2]
[349772232,1737420640775,-500.0,0.00019178,2]
[349772233,1737420640785,-500.0,0.00019178,2]
[349772234,1737420640795,-500.0,0.00019178,2]
[349772235,1737420640805,-500.0,0.00019178,2]
[349772236,1737420640815,-500.0,0.00019178,2]
[349772237,1737420640824,-500.0,0.00019178,2]
[349772238,1737420640834,-2052.29,0.00019178,2]
[349772239,1737420640843,-500.0,0.00019178,2]
[349772240,1737420640853,-513.12,0.00019178,2]
[349772241,1737420640863,-1991.53,0.00019178,2]
[349772242,1737420640873,-500.0,0.00019178,2]
[349772243,1737420640883,-1181.16,0.00019178,2]
[349772244,1737420640892,-500.0,0.00019178,2]
[349772245,1737420640902,-538.13460553,0.00019178,2]
[349772246,1737420640917,-500.0,0.00019178,2]
[349772247,1737420640928,-500.0,0.00019178,2]
[349772248,1737420640938,-1416.54,0.00019178,2]
[349772250,1737420640948,-500.0,0.00019178,2]
[349772251,1737420640958,-500.0,0.00019178,2]
[349772252,1737420640968,-500.0,0.00019178,2]
[349772253,1737420640978,-500.0,0.00019178,2]
[349772254,1737420640987,-171.77644583,0.00019178,2]
[349772255,1737420641015,-2147.99355417,0.00019178,2]
[349772256,1737420641025,-780.49,0.00019178,2]
[349772257,1737420641035,-500.0,0.00019178,2]
[349772258,1737420641045,-500.0,0.00019178,2]
[349772259,1737420641055,-517.81490035,0.00019178,2]
[349772260,1737420641065,-202.87450018,0.00019178,2]
[349772261,1737420641077,-287.12549982,0.00019178,2]
[349772262,1737420641086,-58.20930018,0.00019178,2]
[349772263,1737420641106,-441.79069982,0.00019178,2]
[349772264,1737420641116,-351.09437313,0.00019178,2]
[349772265,1737420641125,-1723.05782883,0.00019178,2]
[349772266,1737420641137,-824.58217117,0.00019178,2]
[349772267,1737420641147,-500.0,0.00019178,2]
[349772268,1737420641159,-500.0,0.00019178,2]
[349772269,1737420641168,-556.06,0.00019178,2]
[349772270,1737420641177,-1503.59,0.00019178,2]
[349772271,1737420641186,-500.0,0.00019178,2]
[349772272,1737420641196,-500.0,0.00019178,2]
[349772273,1737420641206,-500.0,0.00019178,2]
[349772274,1737420641218,-500.0,0.00019178,2]
[349772275,1737420641227,-360.35095664,0.00019178,2]
[349772276,1737420641236,-826.66,0.00019178,2]
[349772277,1737420641245,-500.0,0.00019178,2]
[349772278,1737420641256,-500.0,0.00019178,2]
[349772279,1737420641267,-500.0,0.00019178,2]
[349772280,1737420641277,-500.0,0.00019178,2]
[349772281,1737420641288,-883.4,0.00019178,2]
[349772282,1737420641297,-1204.67,0.00019178,2]
[349772283,1737420641308,-500.0,0.00019178,2]
[349772284,1737420641317,-500.0,0.00019178,2]
[349772285,1737420641327,-500.0,0.00019178,2]
[349772286,1737420641336,-500.0,0.00019178,2]
[349772287,1737420641347,-500.0,0.00019178,2]
[349772288,1737420641356,-500.0,0.00019178,2]
[349772289,1737420641366,-1126.47,0.00019178,2]
[349772290,1737420641375,-159.39353145,0.00019178,2]
[349772291,1737420641384,-633.24,0.00019178,2]
[349772292,1737420641394,-2671.26,0.00019178,2]
[349772293,1737420641404,-500.0,0.00019178,2]
[349772294,1737420641415,-436.21337758,0.00019178,2]
[349772295,1737420641424,-500.0,0.00019178,2]
[349772296,1737420641434,-500.0,0.00019178,2]
[349772297,1737420641443,-500.0,0.00019178,2]
[349772298,1737420641452,-155.36101512,0.00019178,2]
[349772299,1737420641477,-1080.79234568,0.00019178,2]
[349772300,1737420641488,-1028.79,0.00019178,2]
[349772301,1737420641500,-128.2166392,0.00019178,2]
[349772302,1737420641510,-500.0,0.00019178,2]
[349772303,1737420641519,-500.0,0.00019178,2]
[349772304,1737420641529,-500.0,0.00019178,2]
[349772305,1737420641539,-500.0,0.00019178,2]
[349772306,1737420641548,-603.06,0.00019178,2]
[349772307,1737420641557,-500.0,0.00019178,2]
[349772308,1737420641566,-500.0,0.00019178,2]
[349772309,1737420641576,-500.0,0.00019178,2]
[349772310,1737420641585,-500.0,0.00019178,2]
[349772311,1737420641594,-500.0,0.00019178,2]
[349772312,1737420641603,-500.0,0.00019178,2]
[349772313,1737420641613,-500.0,0.00019178,2]
[349772314,1737420641622,-500.0,0.00019178,2]
[349772315,1737420641631,-500.0,0.00019178,2]
[349772316,1737420641641,-500.0,0.00019178,2]
[349772317,1737420641650,-500.0,0.00019178,2]
[349772318,1737420641663,-582.27,0.00019178,2]
[349772319,1737420641672,-1857.25,0.00019178,2]
[349772320,1737420641682,-332.55733899,0.00019178,2]
[349772321,1737420641740,-1909.87266101,0.00019178,2]
[349772322,1737420641749,-846.0,0.00019258,2]
[349772323,1737420641759,-500.0,0.00019318,2]
[349772324,1737420641768,-673.02,0.00019318,2]
[349772325,1737420641777,-500.0,0.00019318,2]
[349772326,1737420641786,-500.0,0.00019318,2]
[349772327,1737420641795,-19075.48069031,0.00019319,2]
[349772328,1737420641805,-153.48,0.0001933,2]
[349772329,1737420641814,-538.8611,0.00019351,2]
[349772330,1737420641823,-1199.3,0.00019351,2]
[349772331,1737420641833,-2292.14,0.00019351,2]
[349772332,1737420641842,-500.0,0.00019351,2]
[349772333,1737420641851,-500.0,0.00019351,2]
[349772334,1737420641860,-750.01,0.00019351,2]
[349772335,1737420641870,-2187.02,0.00019351,2]
[349772336,1737420641880,-1671.37,0.00019351,2]
[349772337,1737420641889,-500.0,0.00019351,2]
[349772338,1737420641899,-3283.45,0.00019351,2]
[349772339,1737420641911,-1093.65,0.00019351,2]
[349772340,1737420641921,-636.22,0.00019351,2]
[349772341,1737420641931,-1498.52,0.00019351,2]
[349772342,1737420641941,-966.72,0.00019351,2]
[349772343,1737420641951,-395.40844161,0.00019351,2]
[349772344,1737420641961,-500.0,0.00019351,2]
[349772345,1737420641971,-3781.0722,0.00019352,2]
[349772346,1737420641981,-18385.1335,0.00019352,2]
[349772347,1737420641990,-171.77,0.00019419,2]
[349772348,1737420642000,-815.63,0.00019421,30]
[349772349,1737420642010,-153.48,0.00019426,2]
[349772350,1737420642020,-500.0,0.00019451,2]
[349772351,1737420642029,-500.0,0.00019451,2]
[349772352,1737420642039,-500.0,0.00019451,2]
[349772353,1737420642049,-541.66,0.00019451,2]
[349772354,1737420642058,-500.0,0.00019451,2]
[349772355,1737420642067,-505.3,0.00019451,2]
[349772356,1737420642078,-1183.9,0.00019451,2]
[349772357,1737420642088,-500.0,0.00019451,2]
[349772358,1737420642097,-500.0,0.00019451,2]
[349772359,1737420642107,-500.0,0.00019451,2]
[349772360,1737420642116,-500.0,0.00019451,2]
[349772361,1737420642125,-500.0,0.00019451,2]
[349772362,1737420642134,-355.27649795,0.00019451,2]
[349772363,1737420642143,-500.0,0.00019451,2]
[349772364,1737420642153,-508.65346327,0.00019451,2]
[349772365,1737420642166,-186.96144575,0.00019451,2]
[349772366,1737420642179,-313.03855425,0.00019451,2]
[349772367,1737420642188,-500.0,0.00019451,2]
[349772368,1737420642197,-500.0,0.00019451,2]
[349772369,1737420642208,-500.0,0.00019451,2]
[349772370,1737420642222,-501.19,0.00019451,2]
[349772371,1737420642231,-500.0,0.00019451,2]
[349772372,1737420642241,-500.0,0.00019451,2]